bitfinex-derivatives/quotes_SOLF0:USTF0_20241212
["timestamp","ask_amount","ask_price","bid_price","bid_amount"]
[1734035324441,6.48943798,228.17,228.1,6.48943798]
[1734035324743,6.48943798,228.17,228.11,5.30277301]
[1734035324940,6.48943798,228.17,228.1,6.48943798]
[1734035325145,6.48943798,228.17,228.11,5.30277187]
[1734035325346,6.48943798,228.17,228.12,14.02323292]
[1734035325546,6.48943798,228.17,228.13,5.30277187]
[1734035325843,6.48943798,228.17,228.14,5.30277187]
[1734035326045,2.1911,228.16,228.15,5.30277187]
[1734035326246,2.54,228.26,228.15,5.30277187]
[1734035326446,6.48943798,228.22,228.16,14.01829608]
[1734035326641,6.48943798,228.22,228.17,5.30277187]
[1734035326847,6.48943798,228.22,228.15,24.17691964]
[1734035327145,6.48943798,228.22,228.16,24.87659263]
[1734035327340,2.1909,228.18,228.17,5.44654813]
[1734035328846,2.1909,228.18,228.17,14.15415067]
[1734035329055,2.1909,228.18,228.17,5.44654813]
[1734035330147,2.1911,228.16,228.14,6.04422991]
[1734035330451,2.1911,228.16,228.15,18.73576863]
[1734035333554,2.1911,228.16,228.15,14.07334469]
[1734035335255,6.48943798,228.22,228.15,18.73419898]
[1734035335450,6.48943798,228.22,228.16,14.07334469]
[1734035335650,6.48943798,228.22,228.17,14.07334469]
[1734035335854,6.48943798,228.22,228.18,14.07334469]
[1734035336053,6.48943798,228.22,228.19,5.41264627]
[1734035336353,6.48943798,228.22,228.2,5.41264627]
[1734035336551,6.48943798,228.22,228.15,2.1912]
[1734035336552,2.1908,228.19,228.15,2.1912]
[1734035336750,2.1908,228.19,228.16,18.72908067]
[1734035336949,2.1908,228.19,228.17,14.07222821]
[1734035337154,2.1906,228.21,228.18,14.07222821]
[1734035337456,2.1906,228.21,228.19,14.07222821]
[1734035337657,2.1906,228.21,228.2,5.41239546]
[1734035338151,2.1906,228.21,228.2,14.06766734]
[1734035338357,2.1906,228.21,228.2,5.41239546]
[1734035339053,2.1906,228.21,228.2,5.40920894]
[1734035340753,2.1906,228.21,228.2,14.06418138]
[1734035341361,2.1906,228.21,228.2,5.40920894]
[1734035341859,2.1906,228.21,228.17,26.27986822]
[1734035342159,2.1906,228.21,228.18,4.65841887]
[1734035342361,2.1906,228.21,228.17,26.27986822]
[1734035342560,2.1906,228.21,228.18,4.65906882]
[1734035342760,2.1906,228.21,228.17,26.27986822]
[1734035342960,2.1906,228.21,228.18,18.74543623]
[1734035343262,2.1906,228.21,228.19,5.41711176]
[1734035343457,2.1906,228.21,228.2,5.41711176]
[1734035344560,2.1906,228.21,228.2,5.41134275]
[1734035346359,2.1911,228.17,228.13,6.02224205]
[1734035346553,2.1911,228.17,228.14,14.07778029]
[1734035346754,2.1911,228.17,228.15,5.41453088]
[1734035346957,2.1911,228.17,228.16,5.41453088]
[1734035347460,2.1908,228.19,228.16,5.41453088]
[1734035347656,2.1908,228.19,228.17,5.41453088]
[1734035347858,2.1908,228.19,228.18,5.41453088]
[1734035348060,2.1908,228.19,228.15,2.1911]
[1734035348061,2.1908,228.19,228.15,8.21334205]
[1734035348260,2.1908,228.19,228.16,14.07658064]
[1734035348457,2.1908,228.19,228.15,8.21334205]
[1734035348458,2.1908,228.19,228.17,5.41400132]
[1734035348760,2.1908,228.19,228.18,5.41400132]
[1734035350858,4.2361,228.28,228.18,11.9034393]
[1734035351057,7.17169235,228.27,228.2,6.48943798]
[1734035351356,6.48943798,228.27,228.21,14.06235025]
[1734035351560,6.48943798,228.27,228.22,5.40859625]
[1734035351761,6.48943798,228.27,228.23,5.40859625]
[1734035351961,6.48943798,228.27,228.2,14.70238003]
[1734035352163,6.48943798,228.27,228.21,14.06653739]
[1734035352467,6.48943798,228.26,228.22,5.41020669]
[1734035352667,6.48943798,228.26,228.23,5.41020669]
[1734035352962,6.48943798,228.26,228.2,8.68013798]
[1734035353160,2.1904,228.24,228.21,18.71595445]
[1734035353366,2.1904,228.24,228.22,5.40819331]
[1734035353560,2.1904,228.24,228.23,5.40819331]
[1734035353859,6.48943798,228.28,228.23,5.40819331]
[1734035354060,6.48943798,228.28,228.24,5.40819331]
[1734035354267,6.48943798,228.29,228.22,6.48943798]
[1734035354457,6.48943798,228.29,228.23,5.40423087]
[1734035354665,6.48943798,228.29,228.24,5.40423087]
[1734035354963,6.48943798,228.29,228.25,5.4047573]
[1734035355163,6.48943798,228.29,228.22,12.51168003]
[1734035355366,6.48943798,228.29,228.23,18.67956119]
[1734035355664,2.1901,228.26,228.24,14.04999888]
[1734035355860,2.1901,228.26,228.25,5.40434103]
[1734035356462,2.1901,228.26,228.23,6.02224205]
[1734035356463,2.1901,228.26,228.22,32.7688062]
[1734035356767,2.1901,228.26,228.23,5.40193715]
[1734035357064,2.1901,228.26,228.24,5.40193715]
[1734035357260,2.1901,228.26,228.22,8.67983798]
[1734035357461,2.1901,228.26,228.23,5.3989869]
[1734035357665,2.1901,228.26,228.24,5.3989869]
[1734035357965,2.1901,228.26,228.22,8.67983798]
[1734035358567,2.1901,228.26,228.23,5.3976549]
[1734035358769,2.1901,228.26,228.22,8.67983798]
[1734035358962,6.48943798,228.29,228.23,5.39794051]
[1734035359164,6.48943798,228.29,228.24,5.39794051]
[1734035359364,6.48943798,228.31,228.24,6.48943798]
[1734035359864,2.19,228.27,228.24,6.48943798]
[1734035360366,2.19,228.27,228.24,9.00943798]
[1734035360774,1.3399,228.34,228.26,6.48943798]
[1734035361064,6.48943798,228.33,228.26,6.48943798]
[1734035361664,2.1897,228.31,228.27,2.19]
[1734035362258,2.1898,228.3,228.26,8.67953798]
[1734035362471,6.48943798,228.33,228.27,5.39543096]
[1734035362767,6.48943798,228.33,228.26,8.67953798]
[1734035363468,2.19,228.28,228.24,9.00943798]
[1734035363665,2.19,228.28,228.25,5.39518451]
[1734035363865,2.19,228.28,228.24,9.00943798]
[1734035364070,2.19,228.28,228.24,11.19963798]
[1734035364265,2.19,228.28,228.25,5.39509675]
[1734035364461,2.19,228.28,228.26,5.39509675]
[1734035364762,2.19,228.28,228.27,5.39509675]
[1734035364959,2.1897,228.3,228.27,5.39509675]
[1734035365164,2.1897,228.3,228.28,5.39509675]
[1734035365364,6.48943798,228.33,228.26,8.67943798]
[1734035365669,6.48943798,228.33,228.27,5.3959735]
[1734035365964,6.48943798,228.33,228.28,5.3959735]
[1734035366169,6.48943798,228.33,228.26,8.67943798]
[1734035366365,6.48943798,228.33,228.27,5.39092307]
[1734035366561,2.1898,228.29,228.28,5.39092307]
[1734035367265,2.1898,228.29,228.26,8.67943798]
[1734035367470,2.1896,228.31,228.28,11.87814553]
[1734035367671,2.1896,228.31,228.28,6.48943798]
[1734035367871,2.1896,228.31,228.29,5.38649803]
[1734035368070,2.1896,228.31,228.3,5.38649803]
[1734035368763,2.1896,228.31,228.27,2.19]
[1734035368969,2.1898,228.29,228.28,5.38344874]
[1734035369267,6.48943798,228.31,228.24,2.52]
[1734035369468,2.19,228.28,228.25,13.99687504]
[1734035369668,6.48943798,228.29,228.26,5.38341348]
[1734035369872,6.48943798,228.29,228.24,2.52]
[1734035370071,6.48943798,228.29,228.25,5.384891]
[1734035370272,6.48943798,228.29,228.24,2.52]
[1734035370573,6.48943798,228.25,228.2,2.52]
[1734035370871,6.48943798,228.25,228.21,5.38984507]
[1734035371073,2.1904,228.24,228.22,5.38984507]
[1734035371268,2.1904,228.24,228.2,2.52]
[1734035371469,2.1904,228.24,228.21,5.39167419]
[1734035371775,2.1904,228.24,228.22,5.38837689]
[1734035371968,2.1904,228.24,228.2,9.00943798]
[1734035372170,2.1903,228.25,228.21,7.57722926]
[1734035372474,2.1903,228.25,228.22,5.38672926]
[1734035372669,6.48943798,228.27,228.21,2.1905]
[1734035372864,2.1904,228.24,228.22,5.38665337]
[1734035373077,2.1904,228.24,228.2,11.20013798]
[1734035373270,2.1904,228.24,228.21,14.00586336]
[1734035373470,2.1904,228.24,228.22,5.38688849]
[1734035373671,2.1904,228.24,228.23,5.38688849]
[1734035373866,2.1904,228.23,228.2,11.20013798]
[1734035374170,2.1904,228.23,228.21,5.38786713]
[1734035374372,2.1904,228.23,228.22,5.38786713]
[1734035375072,2.1904,228.23,228.2,11.20013798]
[1734035375968,2.1904,228.23,228.21,14.01835443]
[1734035376171,2.1904,228.23,228.22,5.39167478]
[1734035376972,2.1904,228.23,228.22,14.02134724]
[1734035377172,2.1904,228.23,228.22,5.39282586]
[1734035379875,2.1902,228.26,228.22,5.39282586]
[1734035380072,6.48943798,228.29,228.23,5.39282586]
[1734035380269,6.48943798,228.29,228.24,5.39282586]
[1734035380472,6.48943798,228.29,228.22,6.48943798]
[1734035380678,6.48943798,228.29,228.23,5.32351179]
[1734035380873,5.36626809,228.37,228.24,5.32351179]
[1734035381075,2.1896,228.32,228.28,8.67933798]
[1734035381277,6.48943798,228.37,228.3,6.48943798]
[1734035381878,6.48943798,228.37,228.31,5.32088098]
[1734035382077,6.48943798,228.37,228.3,6.48943798]
[1734035382382,2.1895,228.32,228.31,5.3203125]
[1734035383974,6.48943798,228.33,228.27,24.04424145]
[1734035384178,2.1899,228.29,228.28,9.94496445]
[1734035384374,2.1899,228.29,228.28,9.94607899]
[1734035384782,2.1899,228.29,228.28,5.32237789]
[1734035385183,2.1899,228.29,228.28,9.94712922]
[1734035385682,2.1899,228.29,228.28,15.95818958]
[1734035385982,2.1899,228.29,228.28,52.49525248]
[1734035386886,2.1899,228.29,228.28,9.94712922]
[1734035387284,2.1899,228.29,228.26,30.53367943]
[1734035387484,2.19,228.28,228.27,4.62705267]
[1734035387787,2.19,228.28,228.27,9.93908196]
[1734035389190,2.19,228.28,228.27,15.95014232]
[1734035389591,2.19,228.28,228.27,52.49910696]
[1734035390197,2.19,228.28,228.27,47.18707767]
[1734035390392,2.19,228.28,228.27,52.50033957]
[1734035391295,2.19,228.28,228.27,15.95137493]
[1734035392190,2.19,228.28,228.27,52.50174279]
[1734035392391,6.48943798,228.34,228.27,52.50174279]
[1734035392592,2.1897,228.3,228.28,22.44081291]
[1734035392791,2.1897,228.3,228.29,5.3132619]
[1734035394093,2.1897,228.3,228.29,9.94343035]
[1734035395093,2.1897,228.3,228.29,5.3132619]
[1734035395993,6.48943798,228.34,228.26,30.53367943]
[1734035395994,6.48943798,228.34,228.26,12.50049834]
[1734035396190,6.48943798,228.34,228.27,5.32575974]
[1734035396393,6.48943798,228.34,228.28,5.32575974]
[1734035396589,6.48943798,228.34,228.26,6.48943798]
[1734035396791,2.1899,228.29,228.27,5.31494745]
[1734035396993,2.1899,228.29,228.26,6.48943798]
[1734035397191,2.1899,228.29,228.25,28.75434145]
[1734035397399,2.1899,228.29,228.26,9.94950033]
[1734035397597,2.1899,228.29,228.27,5.31568255]
[1734035397893,2.1899,228.29,228.28,5.31568255]
[1734035398893,6.48943798,228.32,228.28,5.32336791]
[1734035399096,6.48943798,228.32,228.26,6.01106036]
[1734035399299,6.48943798,228.32,228.27,5.32584436]
[1734035399497,2.1899,228.28,228.26,6.01106036]
[1734035399693,2.1899,228.28,228.27,5.3240778]
[1734035400095,2.1899,228.28,228.26,6.01106036]
[1734035400298,2.1898,228.29,228.27,5.32396938]
[1734035400496,6.48943798,228.36,228.28,16.45188424]
[1734035400696,6.48943798,228.36,228.29,5.32396938]
[1734035400899,6.48943798,228.36,228.3,5.32396938]
[1734035401098,6.48943798,228.36,228.28,14.69039834]
[1734035401298,1.4048,228.38,228.32,6.48943798]
[1734035401500,2.1892,228.36,228.32,6.48943798]
[1734035401700,2.1892,228.36,228.33,5.32316203]
[1734035401898,2.1892,228.36,228.34,5.32316203]
[1734035402100,2.1892,228.36,228.35,5.32316203]
[1734035402502,2.189,228.38,228.35,5.32316203]
[1734035402706,2.189,228.38,228.36,5.32316203]
[1734035403201,2.189,228.38,228.34,12.50049834]
[1734035403402,2.189,228.38,228.35,9.94577719]
[1734035403598,2.189,228.38,228.36,5.31450176]
[1734035403802,2.189,228.38,228.37,5.31450176]
[1734035404105,2.189,228.38,228.34,14.68979834]
[1734035404305,2.189,228.38,228.35,5.3124051]
[1734035404505,2.189,228.38,228.36,5.3124051]
[1734035404701,2.189,228.38,228.37,5.3124051]
[1734035404907,2.189,228.38,228.34,6.48943798]
[1734035405107,9.25633798,228.4,228.35,5.31286926]
[1734035405307,9.25633798,228.4,228.36,5.31286926]
[1734035405509,9.25633798,228.4,228.37,5.31286926]
[1734035405702,9.25633798,228.4,228.34,12.50049834]
[1734035405909,9.25633798,228.4,228.35,5.30973595]
[1734035406106,9.25633798,228.4,228.36,5.30973595]
[1734035406309,2.189,228.38,228.34,6.48943798]
[1734035406510,9.25633798,228.4,228.35,5.30506988]
[1734035406706,9.25633798,228.4,228.36,5.30506988]
[1734035407015,6.48943798,228.38,228.32,12.50049834]
[1734035407305,6.48943798,228.38,228.33,5.30298193]
[1734035407510,2.7669,228.4,228.32,12.50049834]
[1734035407511,9.25633798,228.4,228.34,5.30298193]
[1734035407707,2.7669,228.4,228.35,5.30298193]
[1734035407912,2.7669,228.4,228.36,5.30276032]
[1734035408103,2.1889,228.39,228.34,8.67873798]
[1734035408305,2.1889,228.39,228.35,5.30161735]
[1734035408511,2.1889,228.39,228.36,5.30161735]
[1734035408703,3.5533,228.4,228.36,8.67853798]
[1734035408906,6.48943798,228.44,228.37,5.30101607]
[1734035409206,6.48943798,228.44,228.36,15.00049834]
[1734035409405,2.1887,228.41,228.38,6.48943798]
[1734035410210,6.48943798,228.4,228.36,2.5]
[1734035410706,6.48943798,228.38,228.3,6.01106036]
[1734035410910,6.48943798,228.38,228.31,7.79991199]
[1734035411210,2.1893,228.34,228.32,5.29991199]
[1734035411410,6.48943798,228.38,228.31,2.5]
[1734035411610,6.48943798,228.38,228.32,5.30157678]
[1734035411811,2.1894,228.34,228.31,2.5]
[1734035412210,2.1894,228.34,228.32,5.30226025]
[1734035412410,2.1894,228.34,228.31,2.5]
[1734035412607,6.48943798,228.38,228.32,5.30143281]
[1734035412808,6.48943798,228.33,228.26,138.90329036]
[1734035413013,6.48943798,228.33,228.27,5.30419942]
[1734035413211,6.48943798,228.35,228.28,11.7936374]
[1734035413509,6.48943798,228.35,228.28,6.48943798]
[1734035413918,2.1897,228.31,228.29,5.29938608]
[1734035414111,2.7253,228.37,228.3,6.48943798]
[1734035414314,1.3453,228.37,228.32,6.48943798]
[1734035414613,2.1891,228.37,228.32,11.17893798]
[1734035415115,2.1892,228.36,228.32,8.98943798]
[1734035416315,2.1893,228.35,228.32,8.98943798]
[1734035416813,2.1894,228.34,228.32,2.5]
[1734035417114,6.48943798,228.38,228.32,8.98943798]
[1734035417314,6.48943798,228.4,228.32,15.00049834]
[1734035417516,0.68169175,228.39,228.33,4.62160561]
[1734035417715,0.68169175,228.39,228.32,33.03367943]
[1734035417914,0.68169175,228.39,228.34,6.48943798]
[1734035418215,6.48943798,228.41,228.35,4.61876429]
[1734035418411,6.48943798,228.41,228.34,12.50049834]
[1734035418607,6.48943798,228.41,228.35,4.61780591]
[1734035418807,2.189,228.38,228.34,32.72297943]
[1734035419007,2.189,228.38,228.35,4.61775729]
[1734035419217,2.189,228.38,228.35,6.01106036]
[1734035419613,2.189,228.38,228.34,32.72297943]
[1734035419813,2.189,228.38,228.35,10.62867845]
[1734035420018,2.189,228.38,228.35,6.01106036]
[1734035421412,1.3113,228.44,228.36,8.67853798]
[1734035421413,2.1888,228.4,228.36,8.67853798]
[1734035421618,2.1888,228.4,228.37,2.5]
[1734035422024,2.1887,228.41,228.37,4.689]
[1734035422519,2.1886,228.42,228.38,8.67833798]
[1734035423714,2.1887,228.41,228.37,4.689]
[1734035423912,2.1887,228.41,228.38,6.48943798]
[1734035424111,1.3113,228.44,228.38,6.48943798]
[1734035424516,2.1886,228.42,228.38,6.48943798]
[1734035424720,1.3113,228.44,228.38,6.48943798]
[1734035424914,6.48943798,228.4,228.35,8.51106036]
[1734035425215,6.48943798,228.36,228.31,2.5]
[1734035425420,2.1893,228.35,228.31,2.5]
[1734035425714,6.48943798,228.36,228.31,2.5]
[1734035426017,6.48943798,228.36,228.32,5.31738234]
[1734035426215,6.48943798,228.36,228.31,2.5]
[1734035426422,6.48943798,228.36,228.32,5.31796765]
[1734035426619,6.48943798,228.36,228.31,2.5]
[1734035427220,6.48943798,228.36,228.32,5.31853445]
[1734035427420,6.48943798,228.36,228.31,2.5]
[1734035427621,6.48943798,228.38,228.32,5.31983676]
[1734035427821,6.48943798,228.38,228.31,8.98943798]
[1734035428021,6.48943798,228.38,228.32,5.3218753]
[1734035428322,6.48943798,228.4,228.33,11.81131328]
[1734035428522,2.11069787,228.43,228.33,5.3218753]
[1734035428523,2.1893,228.35,228.33,5.3218753]
[1734035428725,6.48943798,228.38,228.34,5.3218753]
[1734035428921,6.48943798,228.38,228.31,8.98943798]
[1734035429223,2.1894,228.34,228.31,8.98943798]
[1734035429424,2.1894,228.34,228.32,5.32538543]
[1734035429626,2.1893,228.35,228.33,5.32538543]
[1734035429925,2.1893,228.35,228.34,5.32538543]
[1734035430119,2.1892,228.36,228.34,5.32538543]
[1734035430320,2.1892,228.36,228.33,6.48943798]
[1734035430522,2.1892,228.36,228.31,2.5]
[1734035430523,1.4291,228.43,228.35,6.48943798]
[1734035430723,1.4291,228.43,228.36,7.82086443]
[1734035430724,2.1889,228.39,228.36,7.82086443]
[1734035430925,2.1889,228.39,228.36,2.5]
[1734035432321,7.91853798,228.43,228.37,11.12568887]
[1734035432322,2.1887,228.41,228.37,11.12568887]
[1734035432522,2.1887,228.41,228.38,10.64789676]
[1734035432717,2.1887,228.41,228.37,30.53367943]
[1734035433625,2.1887,228.41,228.38,10.6521495]
[1734035433927,1.3113,228.44,228.37,30.53367943]
[1734035434330,1.3113,228.44,228.38,5.31707523]
[1734035434522,1.3113,228.44,228.38,24.04424145]
[1734035435529,2.1887,228.41,228.38,24.04424145]
[1734035435726,1.3113,228.44,228.38,24.04424145]
[1734035435930,2.1884,228.45,228.41,6.48943798]
[1734035436121,6.48943798,228.48,228.41,8.98943798]
[1734035436321,0.68152279,228.47,228.41,8.98943798]
[1734035436921,0.68152279,228.47,228.43,6.48943798]
[1734035437325,0.68152279,228.47,228.44,2.1883]
[1734035437528,2.1879,228.49,228.44,2.1883]
[1734035437735,0.68151142,228.48,228.43,6.48943798]
[1734035438124,0.68151142,228.48,228.45,6.48943798]
[1734035438331,1.3924,228.58,228.47,6.48943798]
[1734035438536,7.17080227,228.57,228.5,6.48943798]
[1734035438728,0.68136429,228.57,228.52,6.48943798]
[1734035438927,0.68136429,228.57,228.52,8.98943798]
[1734035439233,6.48943798,228.59,228.52,8.98943798]
[1734035439632,1.3758,228.6,228.52,8.98943798]
[1734035439633,6.48943798,228.57,228.52,2.5]
[1734035439833,0.67611048,228.56,228.52,2.5]
[1734035440034,2.1875,228.53,228.52,2.5]
[1734035440329,8.67693798,228.53,228.52,2.5]
[1734035440530,2.1875,228.53,228.52,2.5]
[1734035442840,2.1874,228.55,228.52,2.5]
[1734035444037,2.1875,228.53,228.52,2.5]
[1734035445034,2.1874,228.55,228.52,2.5]
[1734035447338,1.4183,228.64,228.52,12.61617922]
[1734035447537,0.67582773,228.63,228.52,12.61617922]
[1734035447933,0.67582773,228.63,228.55,10.11617922]
[1734035448335,0.67582773,228.63,228.55,12.30337922]
[1734035449031,2.1868,228.61,228.55,12.30337922]
[1734035449234,0.67582773,228.63,228.55,12.30337922]
[1734035449430,1.4183,228.64,228.55,12.30337922]
[1734035449632,2.1878,228.5,228.47,24.04424145]
[1734035449936,2.1878,228.5,228.44,72.13272438]
[1734035449937,10.11617922,228.58,228.44,12.61617922]
[1734035450142,0.67596583,228.57,228.44,10.11617922]
[1734035450331,3.39926583,228.57,228.45,2.5]
[1734035450535,2.08906583,228.56,228.45,2.5]
[1734035450837,2.188,228.48,228.45,2.5]
[1734035451133,0.67596583,228.55,228.45,2.5]
[1734035451530,1.4131,228.56,228.45,2.5]
[1734035451841,0.67595497,228.54,228.45,2.5]
[1734035452138,2.1875,228.53,228.45,4.6883]
[1734035452341,1.4131,228.56,228.45,4.6883]
[1734035452641,0.67597764,228.55,228.45,4.6883]
[1734035453742,2.1879,228.5,228.45,4.6883]
[1734035454136,2.1879,228.5,228.47,10.11617922]
[1734035454933,2.1877,228.52,228.48,2.188]
[1734035455437,1.4131,228.56,228.48,2.188]
[1734035455942,0.67591106,228.55,228.49,5.43166864]
[1734035456139,0.67591106,228.55,228.5,2.48]
[1734035456336,2.1877,228.51,228.5,2.48]
[1734035457539,2.48,228.62,228.5,18.02771986]
[1734035457739,10.11617922,228.64,228.51,5.43154064]
[1734035457939,2.1875,228.54,228.5,12.59617922]
[1734035458139,0.67581491,228.62,228.5,12.59617922]
[1734035458336,0.67581491,228.62,228.52,2.1876]
[1734035458540,0.67581031,228.61,228.53,10.11617922]
[1734035458842,0.67581031,228.65,228.53,10.11617922]
[1734035459347,10.79198953,228.64,228.49,24.04424145]
[1734035459541,0.67581031,228.63,228.5,7.91159232]
[1734035459743,0.67581031,228.63,228.51,5.43253656]
[1734035459940,2.1876,228.53,228.5,2.48]
[1734035460137,2.1876,228.53,228.51,5.43239296]
[1734035460341,2.1876,228.53,228.5,2.48]
[1734035460537,2.1874,228.55,228.51,5.43167425]
[1734035460839,6.5555,228.79,228.52,15.54594741]
[1734035461040,0.67578941,228.67,228.56,10.11617922]
[1734035461347,2.1869,228.6,228.57,2.48]
[1734035462249,2.187,228.59,228.57,2.48]
[1734035463045,2.187,228.58,228.57,2.48]
[1734035465354,10.11617922,228.64,228.53,2.48]
[1734035465554,2.1875,228.54,228.53,2.48]
[1734035465749,12.59617922,228.64,228.5,34.16042067]
[1734035465948,0.6758409,228.63,228.5,36.64042067]
[1734035466355,0.67583848,228.62,228.51,53.12707356]
[1734035466552,2.187,228.59,228.51,24.04424145]
[1734035466853,10.11617922,228.64,228.51,24.04424145]
[1734035467048,2.1868,228.61,228.51,24.04424145]
[1734035467244,0.67582461,228.6,228.51,24.04424145]
[1734035467449,10.11617922,228.64,228.51,24.04424145]
[1734035467649,0.67582727,228.63,228.51,24.04424145]
[1734035468355,0.67582727,228.63,228.51,72.13272437]
[1734035468555,2.1874,228.54,228.51,72.13272437]
[1734035468757,2.1874,228.54,228.51,24.04424145]
[1734035469857,2.1874,228.54,228.51,72.13272437]
[1734035470453,2.1874,228.54,228.51,74.32042437]
[1734035470752,10.11617922,228.64,228.52,124.31087451]
[1734035470952,0.67581379,228.63,228.52,74.32022437]
[1734035471156,2.1872,228.57,228.52,74.32022437]
[1734035471459,10.11617922,228.64,228.52,74.32022437]
[1734035471662,0.67581341,228.63,228.52,74.32022437]
[1734035472351,0.67581341,228.63,228.53,5.43655123]
[1734035472653,0.67581341,228.63,228.52,146.45294875]
[1734035472855,0.67581341,228.63,228.53,5.43693795]
[1734035473161,2.1873,228.56,228.52,146.45294875]
[1734035473750,2.1873,228.56,228.53,5.44040873]
[1734035473949,2.1873,228.56,228.52,146.45294875]
[1734035474257,2.1873,228.56,228.53,5.44223997]
[1734035474461,10.11617922,228.67,228.53,10.11617922]
[1734035474762,5.20657055,228.69,228.56,10.11617922]
[1734035474763,0.67578513,228.66,228.56,10.11617922]
[1734035474954,2.1867,228.62,228.58,2.187]
[1734035475157,2.1867,228.62,228.57,2.48]
[1734035475553,2.1867,228.62,228.58,2.187]
[1734035476158,2.1868,228.61,228.57,2.48]
[1734035476462,4.2957,228.68,228.57,2.48]
[1734035476664,0.67569384,228.67,228.58,5.43933415]
[1734035476864,0.67569384,228.66,228.57,2.48]
[1734035477156,2.1867,228.62,228.58,5.43927693]
[1734035477358,0.67569384,228.65,228.59,5.43927693]
[1734035477666,2.1866,228.64,228.6,97.75719039]
[1734035477858,2.1866,228.64,228.61,5.44023722]
[1734035478054,4.2957,228.68,228.62,5.44023722]
[1734035478261,4.2957,228.68,228.59,154.38162797]
[1734035478461,0.67555673,228.67,228.6,7.91844925]
[1734035478659,0.67555673,228.67,228.6,11.1815188]
[1734035478860,10.79173595,228.67,228.6,8.7015188]
[1734035479163,2.1868,228.61,228.6,8.7015188]
[1734035480165,2.86256779,228.61,228.6,8.7015188]
[1734035480362,2.1868,228.61,228.6,8.7015188]
[1734035480666,2.86256829,228.61,228.6,8.7015188]
[1734035481361,2.1873,228.56,228.54,2.48]
[1734035481555,2.1873,228.56,228.55,14.16982827]
[1734035482060,6.7757,228.68,228.55,14.16982827]
[1734035482367,0.67573416,228.67,228.56,24.28600749]
[1734035482663,0.67573416,228.67,228.57,5.44993395]
[1734035482865,0.67573416,228.67,228.56,10.11617922]
[1734035483159,2.1869,228.6,228.56,82.24890359]
[1734035483361,4.2957,228.68,228.57,5.3675272]
[1734035483566,2.1868,228.61,228.58,5.3675272]
[1734035483768,2.1868,228.61,228.59,7.8475272]
[1734035483966,2.1868,228.61,228.6,5.3675272]
[1734035484769,2.1869,228.6,228.59,2.48]
[1734035487169,2.1869,228.6,228.59,7.84087896]
[1734035488674,2.1869,228.6,228.59,2.48]
[1734035488874,2.1869,228.6,228.59,7.83983785]
[1734035489173,2.1869,228.6,228.59,14.30824897]
[1734035489374,2.1869,228.6,228.59,8.94841112]
[1734035489673,2.1869,228.6,228.59,14.3092431]
[1734035490369,2.1869,228.6,228.59,8.94841112]
[1734035490775,2.1869,228.6,228.59,6.46841112]
[1734035491774,2.1869,228.6,228.59,11.83049075]
[1734035492576,2.1869,228.6,228.59,11.8293287]
[1734035492772,2.1869,228.6,228.59,6.46841112]
[1734035492972,2.1868,228.61,228.59,6.46841112]
[1734035493168,4.2957,228.68,228.6,6.46841112]
[1734035493368,0.6756079,228.67,228.62,6.46841112]
[1734035493677,2.1865,228.64,228.62,6.46841112]
[1734035495377,6.46841112,228.66,228.58,74.61272437]
[1734035495572,6.46841112,228.64,228.58,2.48]
[1734035495974,2.1869,228.59,228.58,2.48]
[1734035497777,2.1869,228.59,228.58,7.77018457]
[1734035497977,2.1869,228.59,228.58,2.48]
[1734035498181,2.1869,228.59,228.58,7.77256278]
[1734035498680,2.1869,228.59,228.58,2.48]
[1734035498875,2.1869,228.59,228.58,7.77512371]
[1734035499082,2.1869,228.59,228.58,2.48]
[1734035499279,6.46841112,228.64,228.54,74.61272437]
[1734035499481,2.1872,228.56,228.55,6.46841112]
[1734035500284,2.1874,228.54,228.53,57.03689404]
[1734035500584,2.1874,228.54,228.53,8.94841112]
[1734035500781,6.46841112,228.6,228.53,8.94841112]
[1734035500976,2.1873,228.55,228.53,8.94841112]
[1734035501175,6.46841112,228.6,228.53,8.94841112]
[1734035501777,2.1874,228.54,228.53,8.94841112]
[1734035503185,6.46841112,228.6,228.51,72.13272437]
[1734035503387,6.46841112,228.58,228.5,78.60113549]
[1734035503587,1.3749,228.57,228.5,6.46841112]
[1734035503788,2.1877,228.51,228.5,6.46841112]
[1734035506689,1.3738,228.59,228.5,6.46841112]
[1734035506885,1.3738,228.59,228.53,6.46841112]